[Event "III GM Brena Baja-La Palma 2022"]
[Site "La Palma"]
[Date "2022.04.08"]
[Round "1.1"]
[White "Herrera Reyes, Jose Antonio"]
[Black "Strikovic, Aleksa"]
[Result "1/2-1/2"]
[ECO "A53"]
[WhiteElo "2319"]
[BlackElo "2486"]
[Annotator "TA"]
[PlyCount "146"]
[EventDate "2022.04.01"]
[EventType "tourn"]
[EventCountry "ESP"]
[SourceTitle "playchess.com"]
[Source "ChessBase"]
[SourceQuality "1"]
[TimeControl "5400+30"]

{[%evp 12,146,10,10,25,-10,0,-49,-20,-22,-15,-25,-22,-27,-35,-25,-26,-36,-34,-41,-40,-78,-16,-25,0,0,0,0,0,0,0,0,0,0,0,0,0,0,0,-7,202,218,206,210,196,218,210,122,113,95,105,105,151,156,228,138,144,139,172,135,139,145,178,131,134,145,138,101,103,100,119,123,161,118,114,120,112,104,128,125,148,110,101,114,114,61,93,64,67,89,195,0,0,0,29,29,29,0,15,17,88,25,33,0,8,8,8,8,8,8,8,8,8,8,8,8,8,8,8,8,8,8,8,8,8,8,8,8,8,8,8,8,8,8,8,8,8]} 1. Nf3 {[%emt 0:00:41]} d5 {[%emt 0:00:53]} 2. g3 {[%emt 0:01:06]} Nf6 {[%emt 0:00:56]} 3. Bg2 {[%emt 0:00:09]} c6 {[%emt 0:00:07]} 4. d3 {[%emt 0:00:45]} Nbd7 {[%emt 0:01:17]} 5. c4 {[%emt 0:06:21]} dxc4 {[%emt 0:01:02]} 6. dxc4 {[%emt 0:00:05]} e5 {[%emt 0:00:06]} 7. O-O {[%emt 0:02:27]} Be7 {[%emt 0:00:26] [#] was the old line (7...Bc5). A53: Old Indian Defence without Nf3.} 8. Nh4 $146 {[%emt 0:04:42]} ({Predecessor:} 8. Nc3 O-O 9. Qc2 Qc7 10. Rd1 Re8 11. a3 a5 12. Rb1 h6 13. h3 Nb6 14. b3 a4 15. Nxa4 Nxa4 16. bxa4 e4 17. Bf4 Qa5 18. Nd2 Qxa4 19. Rb3 Bf5 {1-0 (50) Svidler,P (2760)-Morozevich,A (2665) Moscow 2018}) 8... g6 {[%emt 0:07:31]} 9. h3 {[%emt 0:12:15]} (9. b3 $11) 9... O-O {[%emt 0:01:16] Black is slightly better.} 10. Bh6 {[%emt 0:00:22]} Re8 {[%emt 0:00:02]} 11. Nc3 {[%emt 0:01:42]} a5 {[%emt 0:13:39]} 12. Qc1 {[%emt 0:04:24]} Nc5 {[%emt 0:00:33]} 13. Nf3 {[%emt 0:01:05]} Nfd7 {[%emt 0:08:10][%cal Bf6d7,Bd7f8,Bf8e6,Be6d4][%mdl 32]} 14. Qe3 {[%emt 0:15:56]} f6 {[%emt 0:09:32]} 15. Rad1 {[%emt 0:00:20]} Qb6 {[%emt 0:06:59]} 16. g4 {[%emt 0:10:09][%cal Bg3g4,Bg4f5,Bf5f6][%mdl 32]} Qc7 {[%emt 0:08:38]} (16... Qxb2 $17 17. Nd2 Qa3) 17. Nd2 $11 {[%emt 0:04:34]} Nf8 {[%emt 0:07:21]} 18. Nde4 {[%emt 0:08:28]} Nfe6 {[%emt 0:00:09]} 19. Qf3 {[%emt 0:02:25]} f5 {[%emt 0:20:10]} 20. gxf5 {[%emt 0:08:21]} Nd4 {[%emt 0:00:09]} 21. Rxd4 {[%emt 0:00:07]} exd4 {[%emt 0:00:03]} 22. f6 $40 {[%emt 0:00:17][%mdl 128] Intending f7+ and mate. White attacks.} Bf8 {[%emt 0:00:33]} 23. Ng5 $1 {[%emt 0:06:18] Threatening mate with f7+.} Be6 {[%emt 0:03:24] Inhibits f7+.} 24. Bxf8 {[%emt 0:00:05] Really sharp!} Rxf8 {[%emt 0:00:41]} 25. Nce4 {[%emt 0:00:09]} Qe5 {[%emt 0:06:06]} (25... Nxe4 $1 $11 26. Nxe6 Qf7 27. Qxe4 (27. Nxf8 Nd2 $15) 27... Rae8) 26. Nxc5 $18 {[%emt 0:00:07] Pair of Knights!} Rxf6 {[%emt 0:01:27]} 27. Qe4 {[%emt 0:01:54]} (27. Ncxe6 $2 Rxf3 28. Bxf3 h6 $19) 27... Qxc5 {[%emt 0:00:15]} 28. Nxe6 {[%emt 0:00:02]} Qxc4 {[%emt 0:00:08]} 29. Nxd4 {[%emt 0:00:26]} ({White should try} 29. Ng5 $1 $18) 29... Qxa2 $16 {[%emt 0:00:17]} 30. b3 {[%emt 0:00:52]} a4 {[%emt 0:00:37]} 31. bxa4 {[%emt 0:01:25]} Rxa4 {[%emt 0:00:53]} (31... Qxa4 $142 32. Rb1 Rf7) 32. Qe5 {[%emt 0:01:38]} Qf7 {[%emt 0:01:10]} (32... Rf7 $16 33. Be4 Ra5 34. Qb8+ Kg7) 33. Nf3 {[%emt 0:00:01] And now Ng5 would win.} Re6 {[%emt 0:01:09]} 34. Qb2 {[%emt 0:00:21] Black must now prevent Ng5.} Re7 {[%emt 0:00:51]} 35. Rd1 {[%emt 0:00:12]} Ra8 {[%emt 0:00:15]} 36. Ng5 {[%emt 0:02:50][%cal Bf3g5,Bg5e4,Be4g3,Bg3e2,Be2d4][%mdl 32]} Qf5 {[%emt 0:00:06] [#]} 37. Qb3+ {[%emt 0:00:20]} ({White should play} 37. Ne4 $1 $18 {[%mdl 512]}) 37... Kg7 {[%emt 0:00:07] [#]} 38. Ne4 {[%emt 0:00:33][%mdl 512] &Bianco is more active.} Qe5 {[%emt 0:00:30] Prevents Qb2.} 39. Qb1 {[%emt 0:00:49] Inhibits Ra1.} Ra4 {[%emt 0:00:30][%cal Ra4e4]} 40. Ng3 {[%emt 0:00:47]} h5 {[%emt 0:00:52]} 41. e3 {[%emt 0:00:10]} Rf7 {[%emt 0:00:29]} 42. Ne2 {[%emt 0:00:14]} Qf5 {[%emt 0:00:40]} 43. Qb2+ {[%emt 0:00:47]} Qf6 {[%emt 0:00:06]} 44. Nd4 {[%emt 0:00:10]} Kh7 {[%emt 0:00:25]} 45. Qc2 {[%emt 0:00:09]} Ra8 {[%emt 0:00:27]} 46. Nf3 {[%emt 0:00:11]} Kg7 {[%emt 0:00:24]} 47. e4 {[%emt 0:01:19][%cal Be3e4,Be4e5][%mdl 32]} Ra1 {[%emt 0:00:39]} 48. e5 {[%emt 0:00:01]} Qf5 {[%emt 0:00:25]} 49. Qd2 {[%emt 0:00:50]} Rxd1+ {[%emt 0:00:31]} 50. Qxd1 {[%emt 0:00:01]} g5 {[%emt 0:00:25]} (50... Rd7 $16 {is a better defense.} 51. Qe2 Kf8) 51. Qa1 $2 {[%emt 0:01:19]} ({Only move:} 51. e6 $1 $18 {[%cal Re6f7]} Re7 52. Nd4) 51... g4 $11 {[%emt 0:00:37]} 52. e6+ {[%emt 0:01:49]} Rf6 {[%emt 0:00:32] [#]} (52... Qf6 $5 {[%cal Rf6a1]} 53. Qb1 (53. Qa8 $2 Qxe6 54. Qa1+ Qf6 $19) 53... gxf3 54. exf7 fxg2 $11) 53. e7 $1 {[%emt 0:01:32]} Kf7 {[%emt 0:00:02]} 54. Qa8 {[%emt 0:00:20]} Kxe7 {[%emt 0:00:09]} 55. Qxb7+ {[%emt 0:00:02]} Kf8 {[%emt 0:00:09] [#]} (55... Qd7 $11 56. Qxd7+ (56. Qb4+ Qd6 $14) 56... Kxd7 57. hxg4 hxg4 58. Ne5+ Ke6 59. Nxg4 Rf4) 56. Qb8+ {[%emt 0:01:27]} (56. hxg4 $1 $16 hxg4 57. Qa8+ (57. Qb8+ Kg7 $14) 57... Kg7 58. Qa7+ Rf7 59. Qd4+ Rf6 60. Nd2 (60. Nh4 Qg5 $11)) 56... Kg7 {[%emt 0:00:09]} 57. Qg3 {[%emt 0:00:47]} Qf4 {[%emt 0:00:38] ...Qxg3 is the strong threat. The position is equal.} 58. hxg4 {[%emt 0:00:16]} Qxg3 {[%emt 0:02:08][%mdl 64] Remove Defender} 59. fxg3 {[%emt 0:00:02]} hxg4 {[%emt 0:00:21]} 60. Ne5 {[%emt 0:00:02]} c5 {[%emt 0:00:31]} 61. Nxg4 {[%emt 0:00:32]} Rg6 {[%emt 0:00:05]} 62. Ne3 {[%emt 0:00:01]} c4 {[%emt 0:00:22]} 63. Kf2 {[%emt 0:00:08]} c3 {[%emt 0:00:06]} 64. Be4 {[%emt 0:00:08]} Rg5 {[%emt 0:00:44]} 65. Kf3 {[%emt 0:00:23]} Kf6 {[%emt 0:00:30]} 66. Kf4 {[%emt 0:00:31] White wants to mate with Ng4+.} Ra5 {[%emt 0:00:08]} 67. g4 {[%emt 0:00:11]} Rb5 {[%emt 0:00:18]} 68. Nc2 {[%emt 0:01:52]} Ra5 {[%emt 0:01:41]} 69. Ke3 {[%emt 0:00:02]} Kg5 {[%emt 0:00:20]} 70. Kf3 {[%emt 0:01:20]} Ra4 {[%emt 0:00:34]} 71. Ne3 {[%emt 0:00:14]} Rd4 {[%emt 0:00:34]} 72. Bf5 {[%emt 0:00:12]} Ra4 {[%emt 0:01:02]} 73. Ke2 {[%emt 0:00:12]} Rd4 {[%emt 0:00:02] Blacks defense is rewarded with a draw.  Weighted Error Value: White=0.19 (very precise) /Black=0.22 (precise)} 1/2-1/2

[Event "III GM Brena Baja-La Palma 2022"]
[Site "La Palma"]
[Date "2022.04.08"]
[Round "1.2"]
[White "Kurajica, Bojan"]
[Black "Zwirs, Nico"]
[Result "1-0"]
[ECO "D35"]
[WhiteElo "2519"]
[BlackElo "2461"]
[Annotator "TA"]
[PlyCount "115"]
[EventDate "2022.04.01"]
[EventType "tourn"]
[EventCountry "ESP"]
[SourceTitle "playchess.com"]
[Source "ChessBase"]
[SourceQuality "1"]
[TimeControl "5400+30"]

{[%evp 10,115,18,12,21,3,7,0,0,-5,0,0,0,0,0,0,0,0,0,0,0,0,0,0,0,0,20,-12,28,22,50,37,95,93,85,47,66,58,67,78,129,138,129,108,121,114,109,98,192,210,211,212,199,199,309,309,307,307,301,241,219,217,224,217,217,152,381,381,381,381,381,381,2355,1525,12835,12833,12835,12835,12840,12840,12841,12841,12843,12843,12843,12840,12845,12845,12845,12845,27999,27999,27999,27999,27999,27999,27999,27999,27999,27999,27999,27999,27999,27999,27999,27998,27999,27999]} 1. Nf3 {[%emt 0:00:12]} d5 {[%emt 0:00:07]} 2. d4 {[%emt 0:00:13]} Nf6 {[%emt 0:00:06]} 3. c4 {[%emt 0:00:18]} e6 {[%emt 0:00:03]} 4. Nc3 {[%emt 0:01:12]} Nbd7 {[%emt 0:00:12]} 5. cxd5 {[%emt 0:02:10]} exd5 {[%emt 0:00:06]} 6. Bf4 {[%emt 0:00:10]} Nb6 {[%emt 0:02:33] D35: Queen's Gambit Declined: Exchange Variation.} 7. e3 {[%emt 0:08:08] 7.Qc2 is vanishing.} Bf5 {[%emt 0:04:35]} 8. Bd3 {[%emt 0:02:39]} Bxd3 {[%emt 0:00:48] The position is equal.} 9. Qxd3 {[%emt 0:00:07]} Bd6 {[%emt 0:06:50]} 10. Bg5 {[%emt 0:07:58] [#]} O-O $146 {[%emt 0:01:17]} ({Predecessor:} 10... Be7 11. O-O O-O 12. Bxf6 Bxf6 13. b4 a6 14. Nd2 Be7 15. Rfb1 c6 16. a4 g6 {0-1 (41) Xu,X (2573)-Yu,Y (2709) Xinghua 2020}) 11. O-O {[%emt 0:10:17]} c6 {[%emt 0:03:10]} 12. Rfe1 {[%emt 0:01:58]} Be7 {[%emt 0:08:43]} 13. Nd2 {[%emt 0:06:48]} Re8 {[%emt 0:02:02]} 14. Bxf6 {[%emt 0:06:01]} Bxf6 {[%emt 0:00:19]} 15. b4 {[%emt 0:00:05]} Qd6 {[%emt 0:11:35]} 16. Rab1 {[%emt 0:00:32]} a6 {[%emt 0:08:28]} 17. a4 {[%emt 0:00:26]} Nd7 {[%emt 0:06:00]} 18. a5 {[%emt 0:05:55]} Bd8 {[%emt 0:04:45]} 19. e4 {[%emt 0:04:48]} Qg6 {[%emt 0:06:31]} 20. Qh3 {[%emt 0:03:01]} Bg5 {[%emt 0:04:30]} 21. Nf3 $16 {[%emt 0:01:48]} Nf8 {[%emt 0:03:57][%cal Rd5e4]} 22. Qg3 {[%emt 0:07:22]} Bf6 {[%emt 0:01:55][%cal Rd5e4]} 23. Qxg6 {[%emt 0:01:38]} hxg6 {[%emt 0:00:04]} 24. exd5 {[%emt 0:00:13]} Red8 {[%emt 0:01:05]} ({Black should try} 24... Rxe1+ 25. Rxe1 cxd5) 25. dxc6 {[%emt 0:04:57] &Bianco is more active.} bxc6 {[%emt 0:00:21]} 26. Ne4 {[%emt 0:00:36]} Ne6 {[%emt 0:02:56]} 27. Nxf6+ {[%emt 0:04:04]} gxf6 {[%emt 0:00:04]} 28. Rec1 {[%emt 0:00:34]} Nxd4 {[%emt 0:06:05]} (28... Rd6 $16) 29. Nxd4 $18 {[%emt 0:00:07]} Rxd4 {[%emt 0:00:00]} 30. Rxc6 $16 {[%emt 0:00:08][%mdl 4096] Endgame KRR-KRR} Kg7 {[%emt 0:02:49]} 31. g3 {[%emt 0:00:27]} Rb8 {[%emt 0:00:29]} (31... f5 {was worth a try.} 32. Kg2 Rd5) 32. Rxa6 $18 {[%emt 0:00:36] [#] Threatens to win with b5.} Rdxb4 {[%emt 0:00:26]} 33. Rxb4 {[%emt 0:00:09]} Rxb4 {[%emt 0:00:01] KR-KR} 34. Rb6 {[%emt 0:02:54]} Ra4 {[%emt 0:00:03]} 35. a6 {[%emt 0:00:06]} g5 {[%emt 0:01:32]} 36. h3 {[%emt 0:00:19] And now Kf1 would win.} f5 {[%emt 0:01:50]} 37. Kg2 {[%emt 0:01:39]} Kh7 $2 {[%emt 0:02:29] A mistake that costs the game.} (37... f4 $16 {was necessary.} 38. Kf3 fxg3) 38. Kf3 {[%emt 0:04:53]} f4 {[%emt 0:05:23]} 39. gxf4 {[%emt 0:05:31]} Rxf4+ {[%emt 0:00:04]} 40. Ke3 {[%emt 0:00:11]} Ra4 $2 {[%emt 0:00:02]} (40... f5 41. Rb7+ Kg6) 41. Kd3 {[%emt 0:00:15] [#] aiming for Kc3.} Ra2 {[%emt 0:01:56]} 42. f3 {[%emt 0:03:01]} Ra3+ {[%emt 0:01:06]} 43. Kc4 {[%emt 0:00:47]} Rxf3 {[%emt 0:00:07]} 44. Rb3 {[%emt 0:00:48]} ({Not} 44. a7 Ra3 $18) 44... Rf4+ {[%emt 0:02:17]} 45. Kb5 {[%emt 0:00:24]} Rf1 {[%emt 0:02:16]} 46. Ra3 {[%emt 0:01:18]} Rb1+ {[%emt 0:00:26]} 47. Kc6 {[%emt 0:00:07]} Rb8 {[%emt 0:00:47]} 48. a7 {[%emt 0:00:08]} Ra8 {[%emt 0:00:04]} 49. Kb7 {[%emt 0:02:51]} Rxa7+ {[%emt 0:00:12]} 50. Rxa7 {[%emt 0:00:41] KR-KPP. White mates.} Kg6 {[%emt 0:00:06]} 51. Kc6 {[%emt 0:00:07]} f5 {[%emt 0:00:06]} 52. Kd5 {[%emt 0:00:10]} Kh5 {[%emt 0:00:40]} 53. Ke5 {[%emt 0:00:50]} f4 {[%emt 0:00:02]} 54. Kf5 {[%emt 0:01:02]} Kh4 {[%emt 0:00:08]} 55. Rh7+ {[%emt 0:00:19]} Kg3 {[%emt 0:00:06]} 56. Kxg5 {[%emt 0:00:14]} f3 {[%emt 0:00:02]} 57. h4 {[%emt 0:00:31]} f2 {[%emt 0:00:15]} 58. Rf7 {[%emt 0:00:12] Weighted Error Value: White=0.04 (flawless) /Black=0.30} 1-0

[Event "III GM Brena Baja-La Palma 2022"]
[Site "La Palma"]
[Date "2022.04.08"]
[Round "1.3"]
[White "Petkov, Vladimir"]
[Black "Pulvett Marin, Daniel Eduardo"]
[Result "1/2-1/2"]
[ECO "D94"]
[WhiteElo "2491"]
[BlackElo "2499"]
[Annotator "TA"]
[PlyCount "38"]
[EventDate "2022.04.01"]
[EventType "tourn"]
[EventCountry "ESP"]
[SourceTitle "playchess.com"]
[Source "ChessBase"]
[SourceQuality "1"]
[TimeControl "5400+30"]

{[%evp 18,38,0,0,0,0,5,6,0,-2,-2,-5,0,0,-2,-13,0,0,0,0,0,2,5]} 1. d4 {[%emt 0:02:25]} Nf6 {[%emt 0:00:21]} 2. c4 {[%emt 0:00:41]} g6 {[%emt 0:00:15]} 3. Nc3 {[%emt 0:02:00]} d5 {[%emt 0:00:22]} 4. cxd5 {[%emt 0:01:37]} Nxd5 {[%emt 0:00:15]} 5. e3 {[%emt 0:00:22]} Bg7 {[%emt 0:00:55]} 6. Bc4 {[%emt 0:03:43]} Nb6 {[%emt 0:02:19]} 7. Bb3 {[%emt 0:00:18]} O-O {[%emt 0:01:27]} 8. Nf3 {[%emt 0:01:01]} c5 {[%emt 0:01:37]} 9. O-O {[%emt 0:04:20]} cxd4 {[%emt 0:00:20]} 10. Nxd4 {[%emt 0:00:35] The position is equal.} Bd7 {[%emt 0:16:55] D94: Grünfeld: 4 Nf3 Bg7 5 e3.} 11. e4 {[%emt 0:12:18]} Nc6 {[%emt 0:01:10]} 12. Nxc6 {[%emt 0:00:09]} Bxc6 {[%emt 0:00:11] [#]} 13. Bg5 $146 {[%emt 0:00:20]} ({Predecessor:} 13. Qf3 e6 14. Qg3 Qe7 15. Re1 Qb4 16. h4 a5 17. Bc2 a4 18. a3 Qa5 19. h5 Qxh5 20. e5 Nc4 21. Bd1 Qf5 22. Bg4 Qc2 23. Bd1 {½-½ (23) Kuzmin,G-Jansa,V Zinnowitz 1971}) 13... Qxd1 {[%emt 0:05:12]} 14. Rfxd1 {[%emt 0:00:36]} e6 {[%emt 0:00:09]} 15. f3 {[%emt 0:01:56]} Rfc8 {[%emt 0:04:14]} 16. Be3 {[%emt 0:10:33]} Be8 {[%emt 0:00:50]} 17. Bd4 {[%emt 0:00:40]} Nc4 {[%emt 0:00:49]} 18. Bxg7 {[%emt 0:01:27]} Kxg7 {[%emt 0:00:19]} 19. Bxc4 {[%emt 0:00:49]} Rxc4 {[%emt 0:00:17] A balanced but interesting game.  Weighted Error Value: White=0.00 (flawless) /Black=0.03 (flawless)} 1/2-1/2

[Event "III GM Brena Baja-La Palma 2022"]
[Site "La Palma"]
[Date "2022.04.10"]
[Round "3.1"]
[White "Kurajica, Bojan"]
[Black "Strikovic, Aleksa"]
[Result "1/2-1/2"]
[ECO "D45"]
[WhiteElo "2519"]
[BlackElo "2486"]
[Annotator "TA"]
[PlyCount "41"]
[EventDate "2022.04.01"]
[EventType "tourn"]
[EventCountry "ESP"]
[SourceTitle "playchess.com"]
[Source "ChessBase"]
[SourceQuality "1"]
[TimeControl "5400+30"]

{[%evp 19,27,0,0,-27,-14,-25,-12,-28,-26,-18]} 1. d4 {[%emt 0:00:04]} d5 {[%emt 0:00:08]} 2. Nf3 {[%emt 0:00:36]} Nf6 {[%emt 0:00:09]} 3. c4 {[%emt 0:00:47]} c6 {[%emt 0:00:52]} 4. e3 {[%emt 0:02:24]} e6 {[%emt 0:00:32]} 5. Qc2 {[%emt 0:02:08]} Nbd7 {[%emt 0:01:07]} 6. cxd5 {[%emt 0:03:25]} exd5 {[%emt 0:00:10]} 7. Nc3 {[%emt 0:00:47]} Bd6 {[%emt 0:00:47]} 8. Bd3 {[%emt 0:00:21]} O-O {[%emt 0:01:11]} 9. O-O {[%emt 0:04:01]} Re8 {[%emt 0:01:58]} 10. Re1 {[%emt 0:06:11]} Nf8 {[%emt 0:02:23]} 11. e4 {[%emt 0:00:11] D45: Semi-Slav: 5 e3.} dxe4 {[%emt 0:00:17]} 12. Nxe4 {[%emt 0:00:05]} Nxe4 {[%emt 0:00:07]} 13. Rxe4 {[%emt 0:00:02]} Rxe4 {[%emt 0:00:07]} 14. Bxe4 {[%emt 0:00:02] [#] An even fight not without its subleties.} {Predecessor:} h6 $146 15. Bd2 Be6 16. Rd1 Qe7 17. Re1 Qc7 18. Be3 Nd7 19. Rc1 Nf6 20. a3 Nxe4 21. Qxe4 {0-1 (38) Venter,P (1668)-Medeiros,T (2030) Blumenau 2016} 1/2-1/2

[Event "III GM Brena Baja-La Palma 2022"]
[Site "La Palma"]
[Date "2022.04.10"]
[Round "3.2"]
[White "Petkov, Vladimir"]
[Black "Herrera Reyes, Jose Antonio"]
[Result "0-1"]
[ECO "A30"]
[WhiteElo "2491"]
[BlackElo "2319"]
[Annotator "TA"]
[PlyCount "90"]
[EventDate "2022.04.01"]
[EventType "tourn"]
[EventCountry "ESP"]
[SourceTitle "playchess.com"]
[Source "ChessBase"]
[SourceQuality "1"]
[TimeControl "5400+30"]

{[%evp 9,90,12,34,11,58,58,59,50,59,53,47,52,49,45,49,37,33,34,37,0,15,12,27,0,7,8,0,0,12,0,0,0,10,0,-10,0,25,0,97,95,118,92,256,232,236,145,513,20,16,21,8,8,308,71,76,47,83,0,0,0,0,0,15,0,0,0,0,0,0,0,0,0,0,0,44,0,0,-12841,-12842,-12842,-12843,-29997,-29997]} 1. Nf3 {[%emt 0:00:22]} Nf6 {[%emt 0:00:20]} 2. g3 {[%emt 0:00:43]} b6 {[%emt 0:02:52]} 3. Bg2 {[%emt 0:00:47]} Bb7 {[%emt 0:00:14]} 4. O-O {[%emt 0:00:56]} e6 {[%emt 0:01:42]} 5. c4 {[%emt 0:08:38]} c5 {[%emt 0:01:45]} 6. Re1 {[%emt 0:08:38][%cal Oe2e4] A30: Symmetrical English: Double Fianchetto and Hedgehog.} Qc7 {[%emt 0:03:33]} (6... Be7 $11 {might be stronger.}) 7. Nc3 $14 {[%emt 0:01:16]} a6 {[%emt 0:01:08]} 8. e4 {[%emt 0:02:48] White is slightly better.} d6 {[%emt 0:00:22]} 9. b3 {[%emt 0:05:56]} Nbd7 {[%emt 0:02:18]} 10. Bb2 {[%emt 0:01:41]} Be7 {[%emt 0:01:00]} 11. d4 {[%emt 0:04:16]} cxd4 {[%emt 0:00:07]} 12. Qxd4 {[%emt 0:01:28]} Rc8 {[%emt 0:02:40]} 13. Rad1 {[%emt 0:01:23]} O-O {[%emt 0:04:14]} 14. h3 {[%emt 0:00:09]} Qb8 {[%emt 0:02:05]} 15. Qe3 {[%emt 0:04:37]} Rfe8 {[%emt 0:06:42][%cal Ob6b5] [#]} 16. g4 $146 {[%emt 0:11:32]} ({Predecessor:} 16. Nd4 Bf8 17. Kh2 Ba8 18. Re2 g6 19. Qd2 Nc5 20. Qe1 Rcd8 21. Nc2 Bg7 22. Nb4 {0-1 (40) Meier,G (2647)-Medvegy,Z (2510) Germany 2014}) 16... b5 {[%emt 0:09:21]} 17. g5 {[%emt 0:03:42]} Nh5 {[%emt 0:00:59]} 18. cxb5 {[%emt 0:04:58]} axb5 {[%emt 0:00:15]} 19. Nxb5 {[%emt 0:00:50]} e5 {[%emt 0:01:50]} 20. Bf1 {[%emt 0:05:08]} Nf4 {[%emt 0:02:48]} 21. h4 {[%emt 0:00:33]} Nc5 {[%emt 0:06:08]} 22. Nd2 {[%emt 0:01:19]} Bc6 {[%emt 0:07:26]} 23. Nd4 {[%emt 0:04:05][%cal Oa2a4]} (23. a4 $5 {[%cal Rb2a3]}) 23... Bd7 {[%emt 0:06:22]} (23... Ba8 $11) 24. Nf5 $16 {[%emt 0:01:12]} Bxf5 {[%emt 0:00:20]} 25. exf5 {[%emt 0:00:06]} Qa8 $2 {[%emt 0:00:08]} (25... Kh8 $16) 26. Nc4 $18 {[%emt 0:13:10]} Qxa2 {[%emt 0:02:52]} 27. Rxd6 {[%emt 0:02:14]} f6 {[%emt 0:22:39][%mdl 8192]} (27... Bxd6 $16 {is more resistant.} 28. Nxd6 Qxb2) 28. b4 $2 {[%emt 0:05:47]} (28. gxf6 $18 gxf6 29. Qg3+ Kf8 30. Rb6) 28... Ncd3 $1 $11 {[%emt 0:03:43]} 29. Rxd3 {[%emt 0:00:33]} Qxc4 {[%emt 0:00:32]} 30. Rc1 {[%emt 0:03:21]} Qa2 {[%emt 0:02:04][%mdl 8192] [#]} (30... Qxb4 $11 {and Black has nothing to worry.} 31. Rb3 Qd6) 31. Rb3 $2 {[%emt 0:00:56]} (31. Rxc8 $1 $18 {and the rest is easy.} Rxc8 {[#]} 32. Rc3 $1) 31... Rxc1 $16 {[%emt 0:01:55]} 32. Bxc1 {[%emt 0:00:02][%cal Oe3e4] Hoping for Qe4!} Kh8 {[%emt 0:02:31]} 33. b5 {[%emt 0:00:23]} (33. Qf3 $16) 33... Bc5 $1 $11 {[%emt 0:01:55]} 34. Qxc5 {[%emt 0:01:30]} Qxb3 {[%emt 0:00:01]} 35. Qc6 {[%emt 0:00:01][%csl LRe8,LRf6] Inhibits Qf3.} Qf7 {[%emt 0:01:00]} 36. Bc4 {[%emt 0:00:43]} Qh5 {[%emt 0:00:34][%csl LRg5,LRh4] ...Qg4+ is the strong threat.} 37. gxf6 {[%emt 0:01:42]} Qg4+ {[%emt 0:00:41]} 38. Kh2 {[%emt 0:00:43][%cal Rc6e8]} Qxh4+ {[%emt 0:00:30]} 39. Kg1 {[%emt 0:00:01][%cal Rc6e8]} Qg4+ {[%emt 0:00:56]} 40. Kh2 {[%emt 0:00:05][%cal Rc6e8]} Rd8 {[%emt 0:00:54] ( -> ...Qh3+). Dancing on a razor blade.} 41. fxg7+ {[%emt 0:00:40]} Qxg7 {[%emt 0:00:01] aiming for ...Qg5.} (41... Kxg7 $5 42. Qc7+ Kh6 43. Qb6+ (43. Qxd8 $2 Qg2#) 43... Kg7 44. Qc7+ Kh6 45. Qb6+ (45. Qxd8 $2 Qg2#) 45... Kg7 46. Qc7+ $11) 42. Bxf4 {[%emt 0:00:53]} (42. Bb2 $5 {[%cal Rb5b6]} Nh5 43. Qg2 $11) 42... exf4 {[%emt 0:00:01][%cal Be5f4,Bf4f3][%mdl 32]} 43. Qe6 $2 {[%emt 0:00:35][%mdl 8192]} (43. Be6 $11) 43... f3 $19 {[%emt 0:00:29][%csl Gf3][%cal Rg7g2]} 44. Bf1 {[%emt 0:01:17] Prevents Qg2+.} Rg8 {[%emt 0:00:01]} 45. Kh3 {[%emt 0:00:01]} Qg4+ {[%emt 0:00:17] Black used his chance.  Weighted Error Value: White=0.67/Black=0.40} 0-1